bitfinex-derivatives/quotes_BTCF0:USTF0_20250902
["timestamp","ask_amount","ask_price","bid_price","bid_amount"]
[1756848269481,0.45233567,111390.0,111380.0,0.91376]
[1756848269676,0.08668,111390.0,111380.0,0.91376]
[1756848269978,0.45233567,111390.0,111380.0,0.91376]
[1756848270380,0.45233567,111390.0,111380.0,0.08344]
[1756848270583,0.45233567,111390.0,111380.0,0.91376]
[1756848271181,0.08668,111390.0,111380.0,0.91376]
[1756848271387,0.45233567,111390.0,111380.0,0.91376]
[1756848271684,0.45233567,111390.0,111380.0,1.05376]
[1756848272886,0.45233567,111390.0,111380.0,1.05328]
[1756848273372,0.4751434,111390.0,111380.0,1.05328]
[1756848273576,0.4753575,111390.0,111380.0,1.05328]
[1756848274780,0.10948773,111390.0,111380.0,1.05328]
[1756848274977,0.4753575,111390.0,111380.0,1.05328]
[1756848276289,0.45254977,111390.0,111380.0,1.05328]
[1756848277292,0.47538854,111390.0,111380.0,1.05328]
[1756848277588,0.47538854,111390.0,111380.0,0.22344]
[1756848277886,0.47538854,111390.0,111380.0,1.05284]
[1756848280379,0.47538854,111390.0,111380.0,0.22344]
[1756848280785,0.47538854,111390.0,111380.0,1.0528]
[1756848280988,0.47538854,111390.0,111380.0,0.08344]
[1756848281286,0.47538854,111390.0,111380.0,0.91272]
[1756848281689,0.84125831,111390.0,111380.0,0.87832]
[1756848281881,0.84125831,111390.0,111380.0,0.04904]
[1756848282082,0.84125831,111390.0,111380.0,0.87824]
[1756848282277,1.09125831,111390.0,111380.0,0.04904]
[1756848282485,1.09125831,111390.0,111380.0,0.001]
[1756848289391,1.09125831,111390.0,111370.0,0.01503]
[1756848289599,1.18189931,111380.0,111370.0,0.01503]
[1756848289792,1.20473808,111380.0,111360.0,0.0001]
[1756848289983,0.04786,111350.0,111340.0,0.33831302]
[1756848290187,0.459081,111350.0,111340.0,0.25827]
[1756848291506,0.460081,111350.0,111340.0,0.26327]
[1756848291797,0.82595077,111350.0,111340.0,0.26327]
[1756848292001,0.82595077,111350.0,111340.0,0.26427]
[1756848292186,0.82595077,111350.0,111340.0,0.006]
[1756848292391,0.82996077,111350.0,111340.0,0.006]
[1756848292996,0.82996077,111350.0,111340.0,0.01049]
[1756848293202,1.17996077,111350.0,111340.0,0.01049]
[1756848293397,1.20252474,111350.0,111340.0,0.01049]
[1756848294200,1.27382434,111350.0,111340.0,0.01049]
[1756848294593,1.20252474,111350.0,111340.0,0.01049]
[1756848296404,1.17996077,111350.0,111340.0,0.01049]
[1756848297000,1.17595077,111350.0,111340.0,0.05989]
[1756848297504,1.17595077,111350.0,111340.0,0.03494]
[1756848298004,1.17595077,111350.0,111340.0,0.01049]
[1756848298404,1.17996077,111350.0,111340.0,0.01049]
[1756848298797,1.17595077,111350.0,111340.0,0.01049]
[1756848298995,1.17595077,111350.0,111340.0,0.05989]
[1756848299596,1.24730784,111350.0,111340.0,0.05989]
[1756848300307,1.24730784,111350.0,111340.0,0.09372]
[1756848300607,1.24730784,111350.0,111340.0,0.05989]
[1756848302103,1.24730784,111350.0,111340.0,0.03494]
[1756848302903,1.24730784,111350.0,111340.0,0.05989]
[1756848305917,1.24730784,111350.0,111340.0,0.09372]
[1756848306099,0.88143807,111350.0,111340.0,0.09372]
[1756848306406,0.53143807,111350.0,111340.0,0.09372]
[1756848306618,0.1655683,111350.0,111340.0,0.09372]
[1756848306802,0.53143807,111350.0,111340.0,0.09372]
[1756848307611,0.53143807,111350.0,111340.0,0.34372]
[1756848309523,0.89730784,111350.0,111340.0,0.34372]
[1756848309811,0.53143807,111350.0,111340.0,0.34372]
[1756848311809,0.89730784,111350.0,111340.0,0.34372]
[1756848312001,0.53143807,111350.0,111340.0,0.34372]
[1756848317318,0.55398251,111350.0,111340.0,0.34372]
[1756848318915,0.18811274,111350.0,111340.0,0.34372]
[1756848319109,0.11675567,111350.0,111340.0,0.34372]
[1756848319308,0.48262544,111350.0,111340.0,0.34372]
[1756848323218,0.48262544,111350.0,111340.0,1.17288]
[1756848325018,0.48262544,111350.0,111340.0,0.34372]
[1756848325217,0.48262544,111350.0,111340.0,1.17288]
[1756848333621,0.48289981,111350.0,111340.0,1.17288]
[1756848335218,0.48289981,111350.0,111340.0,0.34372]
[1756848335413,0.48289981,111350.0,111340.0,1.17276]
[1756848341326,0.46035537,111350.0,111340.0,1.17276]
[1756848343117,0.46035537,111350.0,111340.0,0.34376]
[1756848343319,0.46035537,111350.0,111340.0,1.17272]
[1756848344627,0.45831537,111350.0,111340.0,1.17272]
[1756848345527,0.48094783,111350.0,111340.0,1.17272]
[1756848346927,0.08041369,111350.0,111340.0,1.17272]
[1756848347128,0.44655783,111350.0,111340.0,1.17272]
[1756848347634,0.42392537,111350.0,111340.0,1.17272]
[1756848349133,0.45831537,111350.0,111340.0,1.17272]
[1756848350732,0.4809949,111350.0,111340.0,1.17272]
[1756848352729,0.08046076,111350.0,111340.0,1.17272]
[1756848352932,0.4466049,111350.0,111340.0,1.17272]
[1756848354034,0.42392537,111350.0,111340.0,1.17272]
[1756848354332,0.45831537,111350.0,111340.0,1.17272]
[1756848354737,0.45831537,111350.0,111340.0,0.34376]
[1756848354933,0.45831537,111350.0,111340.0,1.1726]
[1756848359249,0.45831537,111350.0,111340.0,0.9226]
[1756848360140,0.09217123,111350.0,111340.0,0.9226]
[1756848360442,0.09217123,111350.0,111340.0,1.28874414]
[1756848360443,0.001,111350.0,111340.0,1.28874414]
[1756848360646,0.001,111350.0,111340.0,1.53874414]
[1756848364053,0.001,111350.0,111340.0,1.54761107]
[1756848365856,0.001,111350.0,111340.0,0.70990414]
[1756848366149,0.001,111350.0,111340.0,1.53850414]
[1756848367557,0.001,111350.0,111340.0,1.54734316]
[1756848368154,0.001,111350.0,111340.0,1.63715156]
[1756848368352,0.001,111350.0,111340.0,1.65715156]
[1756848371251,0.001,111350.0,111340.0,1.29100742]
[1756848371451,0.001,111350.0,111340.0,1.65715156]
[1756848371651,0.001,111350.0,111340.0,1.73719458]
[1756848372462,0.001,111350.0,111340.0,1.73703458]
[1756848372663,0.001,111350.0,111340.0,0.43264204]
[1756848372961,0.001,111350.0,111340.0,1.62718618]
[1756848373463,0.001,111350.0,111340.0,1.54714316]
[1756848374966,0.001,111350.0,111340.0,0.71874316]
[1756848375166,0.001,111350.0,111340.0,1.54710316]
[1756848376066,0.001,111350.0,111340.0,1.63691156]
[1756848376559,0.001,111350.0,111340.0,1.71695458]
[1756848379763,0.001,111350.0,111340.0,0.43264204]
[1756848379971,0.001,111350.0,111340.0,1.62702618]
[1756848380269,0.001,111350.0,111340.0,1.26088204]
[1756848380468,0.001,111350.0,111340.0,0.34376]
[1756848380769,0.001,111350.0,111340.0,1.17196]
[1756848384270,0.001,111350.0,111340.0,1.27074072]
[1756848389177,0.001,111350.0,111340.0,1.35078374]
[1756848389471,0.001,111350.0,111340.0,1.71676788]
[1756848391069,0.001,111350.0,111340.0,1.63672486]
[1756848392577,0.001,111350.0,111340.0,1.27054072]
[1756848392878,0.001,111350.0,111340.0,1.63668486]
[1756848393579,0.36703397,111350.0,111340.0,1.18073232]
[1756848393779,0.36703397,111350.0,111340.0,0.71876629]
[1756848393978,0.36703397,111350.0,111340.0,1.54672629]
[1756848395088,0.36703397,111350.0,111340.0,0.71876629]
[1756848395276,0.36703397,111350.0,111340.0,1.54668629]
[1756848395781,0.36703397,111350.0,111340.0,0.71876629]
[1756848396084,0.36703397,111350.0,111340.0,1.54668629]
[1756848397777,1.06589794,111350.0,111340.0,0.92164]
[1756848397973,1.06589794,111350.0,111340.0,0.09376]
[1756848398175,1.06589794,111350.0,111340.0,0.92164]
[1756848398482,1.06589794,111350.0,111340.0,0.9216]
[1756848400472,1.06589794,111350.0,111340.0,0.92432]
[1756848409482,0.69986397,111350.0,111340.0,0.92432]
[1756848412681,0.69986397,111350.0,111340.0,0.09648]
[1756848412880,0.69986397,111350.0,111340.0,0.92416]
[1756848415887,0.69986397,111350.0,111340.0,0.09648]
[1756848416086,0.69986397,111350.0,111340.0,0.92408]
[1756848417886,0.69986397,111350.0,111340.0,0.09648]
[1756848418089,0.69986397,111350.0,111340.0,0.77212]
[1756848419280,0.44986397,111350.0,111340.0,0.77212]
[1756848420189,0.08383,111350.0,111340.0,0.77212]
[1756848420375,0.44986397,111350.0,111340.0,0.77212]
[1756848434393,0.44986397,111350.0,111340.0,0.09648]
[1756848434698,0.44986397,111350.0,111340.0,0.92368]
[1756848436199,0.08383,111350.0,111340.0,0.92368]
[1756848436399,0.44986397,111350.0,111340.0,0.92368]
[1756848437298,0.0239,111350.0,111340.0,0.92368]
[1756848437488,0.36703397,111350.0,111340.0,1.28971397]
[1756848437688,0.001,111350.0,111340.0,0.92368]
[1756848437892,0.36703397,111350.0,111340.0,1.12372302]
[1756848438094,0.36703397,111350.0,111340.0,1.49975699]
[1756848438999,0.36703397,111350.0,111340.0,1.36975699]
[1756848442598,0.001,111350.0,111340.0,2.07559856]
[1756848443300,0.001,111350.0,111340.0,2.07531856]
[1756848443994,0.08412,111380.0,111370.0,0.04901]
[1756848444194,0.08412,111380.0,111370.0,1.27752397]
[1756848444195,0.04603121,111380.0,111370.0,1.27752397]
[1756848444395,0.40255397,111390.0,111380.0,0.08457]
[1756848444396,0.45015397,111390.0,111380.0,0.08457]
[1756848444596,0.47302266,111390.0,111380.0,0.45060397]
[1756848444790,0.43650266,111390.0,111380.0,0.45060397]
[1756848445293,0.43650266,111390.0,111380.0,0.45508397]
[1756848445491,0.36603397,111390.0,111380.0,0.45508397]
[1756848445691,0.41149644,111400.0,111380.0,0.41952397]
[1756848445892,0.45909644,111400.0,111390.0,0.91141]
[1756848446096,0.82513041,111400.0,111390.0,0.91141]
[1756848446700,0.45909644,111400.0,111390.0,0.91141]
[1756848446896,0.46409644,111400.0,111390.0,0.91141]
[1756848447402,0.09806247,111400.0,111390.0,0.91141]
[1756848447603,0.83113041,111400.0,111390.0,0.91241]
[1756848447794,0.46509644,111400.0,111390.0,0.91241]
[1756848448303,0.46309644,111400.0,111390.0,0.91241]
[1756848448600,0.46609644,111400.0,111390.0,0.91329]
[1756848448805,0.83213041,111400.0,111390.0,0.91329]
[1756848449897,0.83213041,111400.0,111390.0,0.91325]
[1756848450101,0.83213041,111400.0,111390.0,0.91321]
[1756848452314,0.83213041,111400.0,111390.0,0.08657]
[1756848452607,1.19816438,111400.0,111390.0,0.8286]
[1756848452795,1.19816438,111400.0,111390.0,0.85322]
[1756848453001,1.19816438,111400.0,111390.0,0.87761]
[1756848453202,1.19816438,111400.0,111390.0,0.05101]
[1756848453407,0.83213041,111400.0,111390.0,0.91309]
[1756848454209,0.83213041,111400.0,111390.0,0.08657]
[1756848454409,0.83213041,111400.0,111390.0,0.91309]
[1756848455405,0.46593616,111400.0,111390.0,0.91309]
[1756848460102,0.46593616,111400.0,111390.0,0.91289]
[1756848461609,0.46593616,111400.0,111390.0,0.08657]
[1756848461913,0.46593616,111400.0,111390.0,0.91285]
[1756848463006,1.08180985,111400.0,111390.0,0.08657]
[1756848463202,1.08180985,111400.0,111390.0,0.49716]
[1756848463708,1.08180985,111400.0,111390.0,0.54535]
[1756848464115,1.08180985,111400.0,111390.0,0.002]
[1756848464308,1.1045683,111400.0,111390.0,0.002]
[1756848466307,1.08180985,111400.0,111390.0,0.002]
[1756848467215,1.10458427,111400.0,111390.0,0.002]
[1756848467408,1.10458427,111400.0,111390.0,0.00648]
[1756848469523,1.10458427,111400.0,111380.0,0.0001]
[1756848469829,1.10458427,111400.0,111370.0,0.04819]
[1756848469830,0.08302,111380.0,111370.0,0.04819]
[1756848470119,0.44889369,111380.0,111370.0,0.02437]
[1756848470316,1.06476738,111380.0,111360.0,0.03505]
[1756848470625,0.44889369,111370.0,111360.0,0.08324]
[1756848471633,0.44889369,111370.0,111360.0,0.04819]
[1756848471812,0.44889369,111370.0,111350.0,0.86612504]
[1756848471813,0.08302,111360.0,111350.0,0.08324]
[1756848472018,0.81476738,111360.0,111350.0,0.93076]
[1756848472821,0.81076738,111360.0,111350.0,0.93076]
[1756848473724,0.81176738,111360.0,111350.0,0.93576]
[1756848474218,0.81176738,111360.0,111350.0,0.05319]
[1756848474520,0.81176738,111360.0,111350.0,0.08824]
[1756848474915,0.81176738,111360.0,111350.0,0.08924]
[1756848476117,0.81176738,111360.0,111350.0,0.05419]
[1756848476322,0.81176738,111360.0,111350.0,0.08924]
[1756848476625,0.88213389,111360.0,111350.0,0.08924]
[1756848476823,0.88213389,111360.0,111350.0,0.05419]
[1756848477030,0.88213389,111360.0,111350.0,0.006]
[1756848477423,0.90491541,111360.0,111350.0,0.006]
[1756848477824,0.90491541,111360.0,111350.0,0.03037]
[1756848478328,0.88213389,111360.0,111350.0,0.03037]
[1756848478524,0.88213389,111360.0,111350.0,0.006]
[1756848483425,0.88213389,111360.0,111350.0,0.05419]
[1756848492233,0.90489647,111360.0,111350.0,0.05419]
[1756848503339,0.95322427,111360.0,111350.0,0.05419]
[1756848504736,0.95322427,111360.0,111350.0,0.03037]
[1756848506436,0.90489647,111360.0,111350.0,0.03037]
[1756848509343,0.90489647,111360.0,111350.0,0.05309]
[1756848509542,0.90489647,111360.0,111350.0,0.08882]
[1756848511234,0.90489647,111360.0,111350.0,0.05309]
[1756848515446,1.27167775,111360.0,111350.0,0.05309]
[1756848519849,1.27167775,111360.0,111350.0,0.03037]
[1756848520044,1.27167775,111360.0,111350.0,0.006]
[1756848526052,1.27167775,111360.0,111350.0,0.02876]
[1756848526251,1.27167775,111360.0,111350.0,0.006]
[1756848527848,1.27167775,111360.0,111350.0,0.02876]
[1756848528050,1.27167775,111360.0,111350.0,0.08682]
[1756848530854,1.27167775,111360.0,111350.0,0.05282]
[1756848532256,1.24891517,111360.0,111350.0,0.05282]
[1756848532456,1.27204099,111360.0,111350.0,0.05282]
[1756848539962,1.27204153,111360.0,111350.0,0.05282]
[1756848544967,1.27204153,111360.0,111350.0,0.02876]
[1756848545265,1.27204153,111360.0,111350.0,0.05282]
[1756848546067,1.27204153,111360.0,111350.0,0.02876]
[1756848548673,1.27204153,111360.0,111350.0,0.08953]
[1756848548971,0.90586531,111360.0,111350.0,0.08953]
[1756848549873,0.90586531,111360.0,111350.0,0.05282]
[1756848552581,0.88273895,111360.0,111350.0,0.05282]
[1756848552780,0.90586489,111360.0,111350.0,0.05282]
[1756848555686,1.27204111,111360.0,111350.0,0.05282]
[1756848556088,0.90586489,111360.0,111350.0,0.05282]
[1756848569703,0.17351245,111360.0,111350.0,0.47953]
[1756848569904,0.90586489,111360.0,111350.0,0.43282]
[1756848570501,0.90586489,111360.0,111350.0,0.46953]
[1756848575311,0.90584982,111360.0,111350.0,0.46953]
[1756848577409,0.53961487,111360.0,111350.0,0.46953]
[1756848577616,0.90573236,111360.0,111350.0,0.46953]
[1756848579015,0.53961487,111360.0,111350.0,0.46953]
[1756848579810,0.53961487,111360.0,111350.0,0.21953]
[1756848580012,0.53961487,111360.0,111350.0,0.23448]
[1756848580316,0.10313087,111360.0,111350.0,0.48448]
[1756848580707,0.08002,111360.0,111350.0,0.48448]
[1756848581717,0.44613749,111360.0,111350.0,0.48448]
[1756848583516,0.44613749,111360.0,111350.0,1.3138]
[1756848589426,0.41553749,111360.0,111350.0,1.3138]
[1756848589814,0.04942,111360.0,111350.0,1.3138]
[1756848591018,0.08308,111360.0,111350.0,1.31372]
[1756848591626,0.04678,111360.0,111350.0,1.31372]
[1756848593825,0.001,111360.0,111350.0,1.31372]
[1756848594130,0.001,111360.0,111350.0,1.67983749]
[1756848594523,0.001,111360.0,111350.0,1.97963619]
[1756848594921,0.001,111360.0,111350.0,2.05967921]
[1756848595729,0.001,111360.0,111350.0,3.79939921]
[1756848596730,0.001,111360.0,111350.0,3.71935619]
[1756848597830,0.001,111360.0,111350.0,3.79939921]
[1756848598329,0.001,111360.0,111350.0,3.71935619]
[1756848599235,0.001,111360.0,111350.0,2.64011619]
[1756848599433,0.001,111360.0,111350.0,3.46923619]
[1756848603027,0.001,111360.0,111350.0,3.46915619]
[1756848604128,1.5,111380.0,111350.0,4.08527368]
[1756848604331,1.52322,111380.0,111370.0,0.44850749]
[1756848604535,1.52322,111380.0,111370.0,1.27750749]
[1756848605131,1.5,111380.0,111370.0,1.27750749]
[1756848605331,1.501,111380.0,111370.0,1.36728999]
[1756848605930,1.5,111380.0,111370.0,1.36728999]
[1756848606233,1.501,111380.0,111370.0,1.36828999]
[1756848606836,1.501,111380.0,111370.0,1.38828999]
[1756848607138,1.501,111380.0,111370.0,1.39725031]
[1756848607332,1.502,111380.0,111370.0,1.39725031]
[1756848607548,1.502,111380.0,111370.0,1.68725031]
[1756848608443,1.502,111380.0,111370.0,1.39725031]
[1756848608837,1.502,111380.0,111370.0,0.56825031]
[1756848609143,1.502,111380.0,111370.0,1.37713031]
[1756848610243,1.502,111380.0,111370.0,0.54825031]
[1756848610461,1.52486,111380.0,111370.0,0.54825031]
[1756848610647,1.52486,111380.0,111370.0,1.37709031]
[1756848610962,1.502,111380.0,111370.0,1.37709031]
[1756848611542,1.502,111380.0,111370.0,0.54825031]
[1756848611753,1.502,111380.0,111370.0,1.37705031]
[1756848612267,1.54911,111380.0,111370.0,0.18213282]
[1756848612559,1.54911,111380.0,111370.0,1.37701031]
[1756848613143,1.58541,111380.0,111370.0,1.37701031]
[1756848613349,1.54911,111380.0,111370.0,1.37701031]
[1756848615458,1.58541,111380.0,111370.0,1.37701031]
[1756848615760,1.58541,111380.0,111370.0,1.01089282]
[1756848615961,1.58541,111380.0,111370.0,1.37701031]
[1756848616559,1.58541,111380.0,111370.0,1.28714781]
[1756848624467,1.58541,111380.0,111370.0,1.37693001]
[1756848629163,1.54911,111380.0,111370.0,1.37693001]
[1756848629557,1.58541,111380.0,111370.0,1.37693001]
[1756848629865,1.58541,111380.0,111370.0,1.39693001]
[1756848630366,1.58541,111380.0,111370.0,1.47697303]
[1756848630765,1.58541,111380.0,111370.0,1.45697303]
[1756848633368,1.58541,111380.0,111370.0,1.36719083]
[1756848633872,1.58541,111380.0,111370.0,1.36687083]
[1756848634971,1.58541,111380.0,111370.0,0.53851083]
[1756848635174,1.58541,111380.0,111370.0,1.36687083]
[1756848635674,1.58541,111380.0,111370.0,1.36683083]
[1756848636074,1.58541,111380.0,111370.0,1.00071334]
[1756848636270,1.58541,111380.0,111370.0,1.36683083]
[1756848637379,1.58541,111380.0,111370.0,0.53851083]
[1756848637579,1.58541,111380.0,111370.0,1.36651457]
[1756848640181,1.58541,111380.0,111370.0,1.7323158]
[1756848643679,1.58541,111380.0,111370.0,1.36651457]
[1756848644190,1.58541,111380.0,111370.0,0.53819457]
[1756848644384,1.58541,111380.0,111370.0,1.36643457]
[1756848644884,1.58541,111380.0,111370.0,3.10539457]
[1756848646686,1.58541,111380.0,111370.0,3.13768001]
[1756848647886,1.58541,111380.0,111370.0,3.50348124]
[1756848648886,1.58541,111380.0,111370.0,3.13768001]
[1756848649091,1.58541,111380.0,111370.0,3.13756001]
[1756848649280,1.58541,111380.0,111370.0,1.94363878]
[1756848649484,1.58541,111380.0,111370.0,3.13756001]
[1756848652289,1.58541,111380.0,111370.0,2.30944001]
[1756848652490,1.58541,111380.0,111370.0,3.13748001]
[1756848657793,1.58541,111380.0,111370.0,2.30944001]
[1756848657993,1.58541,111380.0,111370.0,3.13740001]
[1756848658293,1.58541,111380.0,111370.0,3.27740001]
[1756848659090,1.58541,111380.0,111370.0,1.17263878]
[1756848659294,1.58541,111380.0,111370.0,1.53844001]
[1756848660689,1.58541,111380.0,111370.0,1.17263878]
[1756848660994,1.58541,111380.0,111370.0,1.53844001]
[1756848664097,1.58541,111380.0,111370.0,3.27736001]
[1756848668710,1.58541,111380.0,111370.0,1.53844001]
[1756848670510,1.58541,111380.0,111370.0,0.71048001]
[1756848670704,1.58541,111380.0,111370.0,1.53820001]
[1756848671211,1.58541,111380.0,111370.0,1.17239878]
[1756848671411,1.58541,111380.0,111370.0,1.53820001]
[1756848673413,1.58541,111380.0,111370.0,1.55309001]
[1756848673611,1.58541,111380.0,111370.0,3.29205001]
[1756848675314,1.58541,111380.0,111370.0,3.17972155]
[1756848676110,1.54911,111380.0,111370.0,3.17972155]
[1756848676515,1.58525,111380.0,111370.0,3.17972155]
[1756848677918,0.002,111380.0,111370.0,3.60552278]
[1756848679019,0.002,111380.0,111370.0,3.71785124]
[1756848679920,0.002,111380.0,111370.0,2.89013124]
[1756848680121,0.03814,111380.0,111370.0,2.95393124]
[1756848680322,0.03814,111380.0,111370.0,4.16145124]
[1756848680921,0.03814,111380.0,111370.0,4.04912278]
[1756848681221,0.03814,111380.0,111370.0,4.04908278]
[1756848681621,0.03814,111380.0,111370.0,3.22160278]
[1756848681821,0.03814,111380.0,111370.0,4.04908278]
[1756848682522,0.002,111380.0,111370.0,4.04908278]
[1756848682723,0.002,111380.0,111370.0,3.22160278]
[1756848682926,0.002,111380.0,111370.0,4.04908278]
[1756848684226,0.002,111380.0,111370.0,3.22160278]
[1756848684526,0.002,111380.0,111370.0,4.04904278]
[1756848685230,0.002,111380.0,111370.0,3.22160278]
[1756848685428,0.002,111380.0,111370.0,4.16133124]
[1756848685923,0.002,111380.0,111370.0,3.33393124]
[1756848686130,0.002,111380.0,111370.0,4.16133124]
[1756848687618,0.03814,111380.0,111370.0,3.84129124]
[1756848688831,0.03814,111380.0,111370.0,3.01393124]
[1756848689028,0.03814,111380.0,111370.0,3.84125124]
[1756848690430,0.03814,111380.0,111370.0,3.92199102]
[1756848690729,0.03814,111380.0,111370.0,3.80966256]
[1756848691830,0.03814,111380.0,111370.0,3.72892278]
[1756848695933,0.002,111380.0,111370.0,3.72892278]
[1756848696728,0.002,111380.0,111370.0,3.84125124]
[1756848697430,0.002,111380.0,111370.0,3.01393124]
[1756848697634,0.04885,111380.0,111370.0,1.73622681]
[1756848698026,0.04885,111380.0,111370.0,1.81696822]
[1756848698226,0.04885,111380.0,111370.0,1.70463976]
[1756848699732,0.002,111380.0,111370.0,1.70463976]
[1756848706342,0.002,111380.0,111370.0,1.62389835]
[1756848707245,0.002,111380.0,111370.0,3.36277835]
[1756848707949,0.002,111380.0,111370.0,3.47510681]
[1756848710744,0.002,111380.0,111370.0,3.47478681]
[1756848711046,0.002,111380.0,111370.0,2.64802681]
[1756848711248,0.002,111380.0,111370.0,3.47478681]
[1756848712851,0.002,111380.0,111370.0,2.64802681]
[1756848713051,0.002,111380.0,111370.0,3.47478681]
[1756848714152,0.002,111380.0,111370.0,2.64802681]
[1756848714351,0.002,111380.0,111370.0,3.47470681]
[1756848715655,0.002,111380.0,111370.0,2.64802681]
[1756848715846,0.002,111380.0,111370.0,3.47470681]
[1756848716942,0.002,111380.0,111370.0,1.73582681]
[1756848718151,0.002,111380.0,111370.0,0.90914681]
[1756848718355,0.002,111380.0,111370.0,1.73570681]
[1756848718547,0.002,111380.0,111370.0,0.54336878]
[1756848718847,0.002,111380.0,111370.0,1.73570681]
[1756848720457,0.002,111380.0,111370.0,1.62337835]
[1756848720846,0.002,111380.0,111370.0,1.62329835]
[1756848721150,0.002,111380.0,111370.0,0.79681835]
[1756848721355,0.77022803,111380.0,111370.0,0.50285247]
[1756848721649,0.39445,111380.0,111370.0,1.4313105]
[1756848723051,0.35913,111380.0,111370.0,1.4313105]
[1756848723252,0.35913,111380.0,111370.0,1.06553247]
[1756848723456,0.35913,111380.0,111370.0,1.4313105]
[1756848724450,0.39445,111380.0,111370.0,1.4313105]
[1756848724956,0.39445,111380.0,111370.0,1.06553247]
[1756848725154,0.39445,111380.0,111370.0,1.45135122]
[1756848725952,0.39445,111380.0,111370.0,1.08549319]
[1756848726155,0.39445,111380.0,111370.0,1.45127122]
[1756848727956,0.35913,111380.0,111370.0,1.45127122]
[1756848728158,0.312,111380.0,111370.0,1.45127122]
[1756848728756,0.34598,111380.0,111370.0,1.45127122]
[1756848731359,0.312,111380.0,111370.0,1.45127122]
[1756848731762,0.34598,111380.0,111370.0,1.45127122]
[1756848732561,0.39376,111380.0,111370.0,0.62487122]
[1756848732765,0.39376,111380.0,111370.0,1.45115122]
[1756848735962,0.39376,111380.0,111370.0,1.37037875]
[1756848736560,0.39376,111380.0,111370.0,1.45115122]
[1756848736960,0.39376,111380.0,111370.0,0.62487122]
[1756848737167,0.39376,111380.0,111370.0,1.45103122]
[1756848738865,0.39376,111380.0,111370.0,1.08525319]
[1756848739067,0.39376,111380.0,111370.0,1.45103122]
[1756848740965,0.35978,111380.0,111370.0,1.45103122]
[1756848742569,0.39376,111380.0,111370.0,1.45103122]
[1756848744065,0.39376,111380.0,111370.0,0.62487122]
[1756848744370,0.39376,111380.0,111370.0,1.45087122]
[1756848747168,0.33493,111380.0,111370.0,1.45087122]
[1756848748172,0.33493,111380.0,111370.0,1.37009875]
[1756848748364,0.02493,111380.0,111370.0,1.37009875]
[1756848748565,0.002,111380.0,111370.0,1.37009875]
[1756848749373,0.002,111380.0,111370.0,1.48242721]
[1756848750462,0.002,111380.0,111370.0,1.78242721]
[1756848751374,0.002,111380.0,111370.0,2.04622721]
[1756848752474,0.002,111380.0,111370.0,1.68044918]
[1756848752672,0.002,111380.0,111370.0,2.04622721]
[1756848754981,0.002,111380.0,111370.0,1.93389875]
[1756848755476,0.002,111380.0,111370.0,2.01466331]
[1756848759480,0.002,111380.0,111370.0,2.38031268]
[1756848759778,0.002,111380.0,111370.0,2.37991268]
[1756848761081,0.002,111380.0,111370.0,2.37987268]
[1756848763380,0.002,111380.0,111370.0,2.11607268]
[1756848764577,0.002,111380.0,111370.0,1.38464528]
[1756848764777,0.002,111380.0,111370.0,2.11607268]
[1756848764972,0.002,111380.0,111370.0,1.29051268]
[1756848765174,0.002,111380.0,111370.0,2.11603268]
[1756848765489,0.002,111380.0,111370.0,1.29051268]
[1756848765779,0.002,111380.0,111370.0,2.11599268]
[1756848766279,0.002,111380.0,111370.0,1.29051268]
[1756848766474,0.002,111380.0,111370.0,2.11599268]
[1756848767378,0.002,111380.0,111370.0,2.03522812]
[1756848767780,0.002,111380.0,111370.0,2.03518812]
[1756848768289,0.002,111380.0,111370.0,2.29137188]
[1756848768583,0.002,111380.0,111370.0,2.75105818]
[1756848769982,0.002,111380.0,111370.0,3.11677188]
[1756848770174,0.002,111380.0,111370.0,2.75105818]
[1756848771476,0.0733589,111430.0,111370.0,2.75105818]
[1756848771477,0.0483278,111450.0,111370.0,2.48725818]
[1756848771688,0.0483278,111450.0,111430.0,1.2338643]
[1756848771981,0.08314,111470.0,111460.0,0.08398]
[1756848772176,0.04685,111470.0,111460.0,1.25382152]
[1756848772572,0.08314,111470.0,111460.0,0.88810782]
[1756848772776,0.08314,111470.0,111460.0,1.71338782]
[1756848773286,0.33314,111470.0,111460.0,1.71334782]
[1756848773587,0.65314,111470.0,111460.0,1.71334782]
[1756848773881,0.65314,111470.0,111460.0,2.07906152]
[1756848774277,0.65414,111470.0,111460.0,2.08306152]
[1756848774677,0.65414,111470.0,111460.0,1.71734782]
[1756848774881,0.65314,111470.0,111460.0,1.72034782]
[1756848775082,0.65414,111470.0,111460.0,1.73521782]
[1756848775283,0.65414,111470.0,111460.0,2.10093152]
[1756848775481,0.65414,111470.0,111460.0,1.73521782]
[1756848775687,0.65414,111470.0,111460.0,0.91197782]
[1756848775886,0.65414,111470.0,111460.0,1.73709782]
[1756848779283,0.40414,111470.0,111460.0,1.73709782]
[1756848779974,0.69414,111470.0,111460.0,1.73709782]
[1756848783788,0.33414,111470.0,111460.0,1.73709782]
[1756848784490,0.33414,111470.0,111460.0,1.74709782]
[1756848791693,0.33414,111470.0,111460.0,2.11281152]
[1756848791893,0.33424,111470.0,111460.0,2.11281152]
[1756848792286,0.29795,111470.0,111460.0,2.11281152]
[1756848793891,0.29795,111470.0,111460.0,1.74709782]
[1756848794195,0.275,111470.0,111460.0,2.11281152]
[1756848796788,0.2511,111470.0,111460.0,2.11281152]
[1756848801198,0.2511,111470.0,111460.0,2.1770121]
[1756848803403,0.0011,111470.0,111460.0,2.7470121]
[1756848803602,0.0011,111470.0,111460.0,2.4170121]
[1756848803802,0.0011,111470.0,111460.0,2.7570121]
[1756848804103,1.5011,111470.0,111460.0,2.7570121]
[1756848809205,0.0011,111470.0,111460.0,1.9318921]
[1756848809410,0.0011,111470.0,111460.0,2.7559721]
[1756848810909,0.0011,111470.0,111460.0,3.0197721]
[1756848811610,0.0011,111470.0,111460.0,3.0197321]
[1756848812806,0.0011,111470.0,111460.0,4.7573321]
[1756848813113,0.0011,111470.0,111460.0,3.9332921]
[1756848813313,0.0011,111470.0,111460.0,4.7572921]